Cogmind - Beta 13 @@@ ROGUE MODE // 2024.03.16 @ 18:54:34 Player: Mogwok Wargfriend Result: Destroyed by H-66 Slayer with Heavy Assault Rifle Performance ------------- Evolutions (4) 2000 Regions Visited (15) 3000 Robots Destroyed (161) 805 Value Destroyed (5798) 5798 Prototype IDs (20) 400 Alien Tech Used (0) 0 Bonus (1413) 1413 TOTAL SCORE: 13416 Bonus ------- High Alert Combat Kills 199 Follower Combat Kills 1710 Aligned with FarCom 300 Met Data Miner 300 Friendly Fire -1096 Cogmind --------- Core Integrity 0/850 Matter 300/300 Energy 75/100 System Corruption 0% Temperature Cool (0) Movement Core (50) Location -6/Hub_04(d) Parts ------- > --- POWER (1) -------- (None) > --- PROPULSION (4) --- Flexi-carbon Leg > --- UTILITY (7) ------ Advanced Heat Sink Enhanced Optical Array Target Analyzer Improved Hacking Suite Improved System Shield > --- WEAPON (3) ------- (None) > --- INVENTORY (5) ---- Neutrino Core Advanced Heat Sink Improved Medium Armor Plating KE Penetrator Advanced KE Penetrator Peak State ------------ > --- POWER ------------ Quantum Reactor > --- PROPULSION ------- Flexi-carbon Leg Flexi-carbon Leg Flexi-carbon Leg Improved VSS Leg > --- UTILITY ---------- Advanced Heat Sink Medium Storage Unit Enhanced Optical Array Target Analyzer Improved Reaction Control System Centrium Medium Armor Plating Improved Hacking Suite > --- WEAPON ----------- Hypervelocity Gauss Rifle Hypervelocity Gauss Rifle Advanced KE Penetrator > --- INVENTORY -------- Neutrino Core Carbon-fiber Leg Flexi-carbon Leg Advanced Heat Sink Improved Light Armor Plating Improved Medium Armor Plating Improved Medium Armor Plating Improved System Shield KE Penetrator KE Penetrator [Rating: 84] Favorites ----------- Power Reinforced Deuterium Engine Engine Reinforced Deuterium Engine Power Core Light Fission Core Reactor Quantum Reactor Propulsion Carbon-fiber Leg Treads Armored Treads Leg Carbon-fiber Leg Wheel Armored Huge Wheel Hover Unit Airjet Flight Unit Nuclear Pulse Thruster Utility Medium Storage Unit Device Improved Cooling System Storage Medium Storage Unit Processor Enhanced Optical Array Hackware Hacking Suite Protection Medium Armor Plating Weapon Mini Assault Cannon Energy Gun Shock Rifle Energy Cannon Particle Cannon Ballistic Gun Hypervelocity Gauss Rifle Ballistic Cannon Mini Assault Cannon Launcher Guided EMP Blaster Special Weapon Mining Laser Build | -11 -10 -10 -10 -9 -8 -7 -7 -7 -7 -6 -6 -6 -6 -6 -6 ------- Run | Yrd Mat Min Exi Min Mat Fac Low Low Dat Pro Fac Ext Cet Arc Hub Slots Evolved 8 | . . . . . 4 2 . . . . 2 . . . . Power . | . . . . . . . . . . . . . . . . Propulsion 2 | . . . . . 2 . . . . . . . . . . Utility 5 | . . . . . 2 1 . . . . 2 . . . . Weapon 1 | . . . . . . 1 . . . . . . . . . Parts Attached 200 | 8 8 1 6 2 20 36 8 14 1 25 23 15 10 12 11 Power 20 | 1 2 . . . 6 3 1 2 1 1 1 1 1 . . Engine 14 | 1 2 . . . 6 2 1 1 . 1 . . . . . Core 5 | . . . . . . 1 . 1 1 . 1 1 . . . Reactor 1 | . . . . . . . . . . . . . 1 . . Propulsion 70 | 4 1 . 3 . 8 11 1 10 . 8 7 6 4 2 5 Treads 2 | . . . . . 1 . . 1 . . . . . . . Leg 47 | 2 . . 3 . 7 8 1 4 . 1 4 6 4 2 5 Wheel 6 | 2 1 . . . . 2 . . . . 1 . . . . Hover 10 | . . . . . . 1 . . . 7 2 . . . . Flight 5 | . . . . . . . . 5 . . . . . . . Utility 60 | 1 3 . 3 . 3 12 3 2 . 7 11 4 1 7 3 Device 32 | . 2 . 1 . 2 7 . 2 . 7 4 2 . 4 1 Storage 12 | 1 1 . 2 . . 2 1 . . . 3 1 . . 1 Processor 3 | . . . . . . . . . . . 3 . . . . Hackware 3 | . . . . . . . . . . . 1 . . 1 1 Protection 10 | . . . . . 1 3 2 . . . . 1 1 2 . Artifact . | . . . . . . . . . . . . . . . . Weapon 50 | 2 2 1 . 2 3 10 3 . . 9 4 4 4 3 3 Energy Gun 11 | 1 1 . . 2 . 4 1 . . 2 . . . . . Energy Cannon 5 | . . . . . 1 2 . . . . . 1 . 1 . Ballistic Gun 14 | 1 1 . . . . . . . . 1 1 2 3 2 3 Ballistic Cannon 13 | . . . . . 1 4 2 . . 3 2 1 . . . Launcher 5 | . . . . . . . . . . 3 1 . 1 . . Special Weapon 2 | . . 1 . . 1 . . . . . . . . . . Impact Weapon . | . . . . . . . . . . . . . . . . Slashing Weapon . | . . . . . . . . . . . . . . . . Piercing Weapon . | . . . . . . . . . . . . . . . . Special Melee Weapon . | . . . . . . . . . . . . . . . . Unidentified Prototypes 9 | . . . 3 . 1 2 . . . 1 . . 2 . . Corrupted Parts 1 | . . . . . . 1 . . . . . . . . . System Corruption 5 | . . . . . . 5 . . . . . . . . . Parts Lost 68 | . 1 . . . 8 10 4 4 . 16 9 4 . 3 9 Power 6 | . . . . . 2 . 1 1 . 1 1 . . . . Propulsion 24 | . . . . . 2 5 . 2 . 5 5 . . . 5 Utility 18 | . . . . . 1 1 2 1 . 7 2 1 . 1 2 Weapon 20 | . 1 . . . 3 4 1 . . 3 1 3 . 2 2 Highest Loss Streak 9 | . 1 . . . 7 3 3 2 . 8 6 1 . 2 9 To Critical Strikes . | . . . . . . . . . . . . . . . . Average Slot Usage (%) 89 | . 88 100 99 100 86 89 91 89 84 70 92 98 96 99 99 Engine 5 | . 14 14 14 14 8 6 6 5 5 4 4 . . . . Core 1 | . . . . . . . . 1 1 2 1 6 . . . Leg 14 | . . . 7 28 27 20 15 8 . . 6 25 26 26 25 Wheel 3 | . 28 28 20 . . 4 7 . . . . . . . . Hover 3 | . . . . . . . . . . 12 18 . . . . Flight 3 | . . . . . . . . 15 30 9 . . . . . Device 13 | . 3 14 13 14 15 18 15 13 7 12 16 12 8 4 6 Storage 13 | . 14 14 14 14 9 10 15 15 15 9 12 18 13 13 12 Processor 3 | . . . . . . . . . . . 6 13 13 13 13 Protection 4 | . . . . . 6 5 6 7 7 . . . 9 13 6 Energy Gun 3 | . 17 21 14 21 3 7 3 . . . . . . . . Ballistic Gun 3 | . 10 . . . . . . . . 1 2 6 10 19 19 Ballistic Cannon 10 | . . . . . 5 10 19 18 15 11 12 11 6 . . Naked Turns . | . . . . . . . . . . . . . . . . Heaviest Build 67 | 10 20 20 21 20 37 51 51 54 46 42 56 59 63 67 58 Greatest Support 78 | 20 20 20 60 30 55 53 45 78 22 32 60 70 75 75 75 Greatest Overweight (x) 11 | . . . . . 1 1 1 4 2 11 5 . . 1 . Average Overweight (x) . | . . . . . . . 1 1 1 1 . . . . . Largest Inventory Capacity 10 | 8 10 10 10 10 10 10 10 10 10 10 10 10 10 10 10 Average Capacity 9 | 6 8 10 9 10 10 10 10 10 10 10 10 9 10 10 9 Most Carried 10 | 6 10 10 10 10 10 10 10 10 10 10 10 10 10 10 10 Average Carried 9 | 3 7 9 9 9 8 9 9 9 10 8 9 9 9 9 9 Final Capacity 10 | 8 10 10 10 10 10 10 10 10 10 10 10 10 10 10 5 Final Carried 10 | 6 10 10 10 10 10 10 10 10 10 10 10 10 10 10 5 Class Distribution -------------------- 21% | Scavenger-Tank 21% | Tank 20% | Mutant 14% | Scavenger-Gunner 10% | Scavenger-Mutant 3% | Scavenger-Skirmisher 3% | Gunner Dominant Class ---------------- Mutant | -10/Materials Mutant | -10/Mines Mutant | -10/Exiles Mutant | -9/Mines Mutant | -8/Materials Tank | -7/Factory Tank | -7/Lower Caves Scavenger-Mutant | -7/Lower Caves Scavenger-Mutant | -7/Data Miner Scavenger-Tank | -6/Proximity Caves Scavenger-Tank | -6/Factory Scavenger-Gunner | -6/Extension Scavenger-Tank | -6/Cetus Scavenger-Tank | -6/Archives Scavenger-Gunner | -6/Hub_04(d) Resources | -11 -10 -10 -10 -9 -8 -7 -7 -7 -7 -6 -6 -6 -6 -6 -6 ----------- Run | Yrd Mat Min Exi Min Mat Fac Low Low Dat Pro Fac Ext Cet Arc Hub Matter Collected 7683 | 231 98 34 50 85 454 476 991 539 . 982 739 1151 599 630 624 Remotely 70 | . . . . . . . . . . . 70 . . . . Salvage Created 6877 | . 98 . . . 684 896 621 233 . 381 745 704 807 562 1146 Parts 340 | . 7 . . . 34 48 29 14 . 20 25 36 32 33 62 Haulers Intercepted 3 | . . . . . 2 . . . . . . . . . 1 Recyclers Shooed 5 | . . . . . 1 2 . . . . 1 . . . 1 Parts Field Recycled . | . . . . . . . . . . . . . . . . Retrieved Matter . | . . . . . . . . . . . . . . . . Parts Self-Destructed 71 | . . . . . . . 28 7 . 36 . . . . . Prevented 5 | . . . . . . . 4 . . 1 . . . . . Kills | -11 -10 -10 -10 -9 -8 -7 -7 -7 -7 -6 -6 -6 -6 -6 -6 ------- Run | Yrd Mat Min Exi Min Mat Fac Low Low Dat Pro Fac Ext Cet Arc Hub Combat Hostiles Destroyed 115 | . 2 . . . 12 15 19 10 . 17 11 8 11 4 6 Guns 31 | . 2 . . . 1 6 1 . . 3 3 4 1 4 6 Cannons 69 | . . . . . 11 8 18 10 . 11 6 4 1 . . AOE 11 | . . . . . . 1 . . . 3 1 . 6 . . Classes Destroyed 21 | . 1 . . . 6 7 1 1 . 3 . 2 . . . Worker 11 | . . . . . 2 3 . . . . . . . . 6 Builder 6 | . . . . . 1 1 . . . . . 2 . . 2 Tunneler 1 | . . . . . . 1 . . . . . . . . . Hauler 3 | . . . . . 2 . . . . . . . . . 1 Recycler 9 | . . . . . 3 2 . . . . 1 . . . 3 Minesweeper 1 | . . . . . . . 1 . . . . . . . . Operator 7 | . . . . . . . . . . . . 1 . 6 . Drone 1 | . . . . . . . . . . 1 . . . . . Watcher 3 | . . . . . . 1 . . . . 1 1 . . . Swarmer 29 | . . . . . 4 . 8 5 . 11 . . 1 . . Grunt 40 | . 2 . . . 6 7 6 2 . . 8 1 7 . 1 Brawler 6 | . . . . . . 1 2 1 . . 1 . 1 . . Duelist 3 | . . . . . . 1 2 . . . . . . . . Protector 1 | . . . . . . . . . . 1 . . . . . Sentry 17 | . . . . . 2 1 1 1 . 2 1 4 . 4 1 Demolisher 3 | . . . . . . . . . . 3 . . . . . Hunter 7 | . . . . . . 1 . . . . . . 2 . 4 Programmer 4 | . . . . . . 3 . . . . 1 . . . . Heavy 1 | . . . . . . 1 . . . . . . . . . Behemoth 1 | . . . . . . . . . . . . 1 . . . Master Thief 1 | . . . . . . . . 1 . . . . . . . Thug 1 | . . . . . . . . . . . . 1 . . . Savage 2 | . . . . . . . . . . . . 1 1 . . Butcher 2 | . . . . . . . . . . . . 2 . . . Guerrilla 2 | . . . . . . . . . . . . 1 1 . . Best Kill Streak 8 | . 2 . . . 5 5 8 3 . 5 4 3 5 4 8 Combat Bots Only 8 | . 2 . . . 5 3 8 3 . 5 4 2 5 1 2 Max Kills in Single Turn 2 | . 1 . . . 1 2 1 1 . 2 1 2 2 2 2 Gunslinging . | . . . . . . . . . . . . . . . . Exploded 2 | . . . . . . 1 . . . 2 1 . 2 . . Melee . | . . . . . . . . . . . . . . . . Uniques/NPCs Destroyed . | . . . . . . . . . . . . . . . . Combat | -11 -10 -10 -10 -9 -8 -7 -7 -7 -7 -6 -6 -6 -6 -6 -6 -------- Run | Yrd Mat Min Exi Min Mat Fac Low Low Dat Pro Fac Ext Cet Arc Hub Hostile Shots Fired 1035 | . 17 . . . 142 174 112 48 . 83 91 122 68 55 123 Missed 330 | . 2 . . . 40 60 30 10 . 31 33 47 17 22 38 Damage Taken 11734 | . 208 11 . . 1558 1700 1494 468 . 1211 941 746 772 774 1851 Core 1709 | . 74 . . . 165 186 120 50 . 254 154 104 183 88 331 Absorbed by Shields 336 | . . . . . . . . . . . . 250 86 . . Regen/Repaired (Parts) 237 | . . . . . . 30 . . . . . 207 . . . Core Remaining (%) 63 | 100 . . . 70 70 . . . . 12 . . . . . Volleys Fired 485 | . 11 2 . 1 63 57 45 27 . 58 32 63 39 51 36 Largest 3 | . 2 1 . 2 2 3 3 3 . 3 3 3 3 3 3 Hottest 176 | . 60 100 . 80 112 161 146 144 . 176 144 171 171 121 101 Shots Fired 1138 | . 19 2 . 2 103 108 134 68 . 113 70 186 80 148 105 Gun 501 | . 19 . . 2 29 52 26 . . 16 18 61 39 134 105 Cannon 593 | . . . . . 69 56 108 68 . 84 39 125 30 14 . Launcher 37 | . . . . . . . . . . 13 13 . 11 . . Special 7 | . . 2 . . 5 . . . . . . . . . . Kinetic 911 | . 9 . . . 41 32 108 68 . 96 57 180 67 148 105 Thermal 125 | . 10 2 . 1 50 50 . . . 4 . 6 2 . . Explosive . | . . . . . . . . . . . . . . . . Electromagnetic 102 | . . . . 1 12 26 26 . . 13 13 . 11 . . Robot Hit Streak 21 | . 7 1 . 3 20 15 7 4 . 4 21 11 8 10 9 Robot Miss Streak 8 | . 1 1 . . 8 4 7 8 . 7 3 7 7 3 3 Penetration Max 3 | . . . . . . . . . . 1 1 1 1 1 3 Secondary Targets . | . . . . . . . . . . . . . . . . Shots Hit Robots 612 | . 16 1 . 2 81 73 62 26 . 43 50 84 36 73 65 Core Hits 340 | . 6 . . . 59 52 27 14 . 33 24 30 36 27 32 Critical Kills 33 | . . . . . . . . . . 3 3 5 2 7 13 Critical Parts Destroyed 31 | . . . . . . . . . . 1 7 4 5 5 9 Critical Strikes 93 | . . . . . . 1 4 4 . 5 14 19 7 17 22 Burn 1 | . . . . . . 1 . . . . . . . . . Destroy 69 | . . . . . . . . . . 4 10 10 7 16 22 Blast 23 | . . . . . . . 4 4 . 1 4 9 . 1 . Melee Attacks . | . . . . . . . . . . . . . . . . Impact . | . . . . . . . . . . . . . . . . Slashing . | . . . . . . . . . . . . . . . . Piercing . | . . . . . . . . . . . . . . . . Sneak Attacks . | . . . . . . . . . . . . . . . . Combat Hostiles . | . . . . . . . . . . . . . . . . Follow-up Attacks . | . . . . . . . . . . . . . . . . Damage Inflicted 14523 | . 166 24 . 27 1426 1561 1618 745 . 1443 1379 1753 1376 1562 1443 Guns 4561 | . 154 . . 27 310 518 221 . . 77 126 265 132 1311 1420 Cannons 7832 | . . . . . 1031 964 1397 745 . 974 699 1485 286 251 . Explosions 1983 | . . . . . . 79 . . . 392 554 . 958 . . Melee . | . . . . . . . . . . . . . . . . Ramming 51 | . 12 . . . 13 . . . . . . 3 . . 23 Kinetic 10110 | . 43 . . . 623 531 1397 745 . 1007 825 1568 389 1562 1420 Thermal 1772 | . 111 24 . 12 653 604 . . . 44 113 182 29 . . Explosive . | . . . . . . . . . . . . . . . . Electromagnetic 2590 | . . . . 15 137 426 221 . . 392 441 . 958 . . Impact . | . . . . . . . . . . . . . . . . Slashing . | . . . . . . . . . . . . . . . . Piercing . | . . . . . . . . . . . . . . . . Highest Corruption 17 | . . . . . 5 14 17 17 17 17 . 2 3 3 . Average Corruption 12 | . . . . . 5 12 15 17 17 17 . 1 2 2 . Corruption Purged 3 | . . . . . . . . . . . . . . 3 . Corruption Blocked . | . . . . . . . . . . . . . . . . Effects 334 | . . . . . 13 53 68 56 6 103 . 15 13 7 . Message Errors 82 | . . . . . 4 10 21 9 2 29 . 4 2 1 . Matter Fused 74 | . . . . . 4 16 12 11 3 22 . 4 1 1 . Heat Flow Errors 45 | . . . . . . 10 5 7 . 16 . 1 5 1 . Energy Discharges 41 | . . . . . . 6 12 9 1 12 . . 1 . . Parts Rejected 4 | . . . . . 1 1 2 . . . . . . . . Parts Fused 4 | . . . . . . . 2 . . 2 . . . . . Data Loss (minor) 37 | . . . . . 2 6 8 10 . 8 . 1 1 1 . Data Loss (major) 17 | . . . . . 1 3 2 4 . 6 . 1 . . . Misfires 12 | . . . . . . . 2 1 . 6 . 2 1 . . Alerts 4 | . . . . . 1 . . 2 . 1 . . . . . Misdirections 2 | . . . . . . 1 . . . 1 . . . . . Weapon Failures 12 | . . . . . . . 2 3 . . . 2 2 3 . Overload Shots . | . . . . . . . . . . . . . . . . Overflow Damage 111 | . . . . . 1 . 58 11 . 13 7 18 3 . . Projectiles 102 | . . . . . 1 . 58 11 . 7 7 18 . . . Explosions 9 | . . . . . . . . . . 6 . . 3 . . Melee . | . . . . . . . . . . . . . . . . Knockbacks 72 | . . . . . 21 7 18 5 . 9 5 5 1 1 . Impact . | . . . . . . . . . . . . . . . . Kinetic 66 | . . . . . 18 7 15 5 . 9 5 5 1 1 . Secondary 6 | . . . . . 3 . 3 . . . . . . . . Self-Inflicted Damage 14 | . 6 . . . . 8 . . . . . . . . . Shots 1 | . . . . . . 1 . . . . . . . . . Rammed 3 | . 3 . . . . . . . . . . . . . . Targets Rammed 8 | . 3 . . . 1 . . . . . . 1 . . 3 Kicked 5 | . . . . . 1 . . . . . . 1 . . 3 Crushed . | . . . . . . . . . . . . . . . . Highest Temperature 533 | . 90 . . 18 314 235 236 247 . 533 42 173 258 415 . Average Temperature 98 | . 56 . . 12 97 82 63 58 . 97 12 28 91 144 . Received Heat Transfer 2816 | . 117 . . . 768 609 243 111 . 57 465 154 85 126 81 Effects 10 | . . . . . . . . . . 6 . . . 4 . Shutdowns 1 | . . . . . . . . . . . . . . 1 . Interference 5 | . . . . . . . . . . 3 . . . 2 . Matter Decay 1 | . . . . . . . . . . . . . . 1 . Damage (major) 3 | . . . . . . . . . . 3 . . . . . Siege Activations . | . . . . . . . . . . . . . . . . Robots Corrupted 4 | . . . . . . . . . . . 1 . 3 . . Combat Hostiles 4 | . . . . . . . . . . . 1 . 3 . . Parts Fried 8 | . . . . . . . 1 . . . 3 1 3 . . Impact Corruptions 1 | . . . . . . . 1 . . . . . . . . Robots Melted . | . . . . . . . . . . . . . . . . Combat Hostiles . | . . . . . . . . . . . . . . . . Parts Melted 3 | . . . . . 1 2 . . . . . . . . . Heat Transferred 3563 | . 250 50 . 25 1290 1469 . . . 88 150 204 37 . . Parts Sabotaged . | . . . . . . . . . . . . . . . . Parts Stolen 4 | . . . . . . . . 4 . . . . . . . Parts Stripped . | . . . . . . . . . . . . . . . . Power Chain Reactions 9 | . . . . . . 1 . . . . 5 . 3 . . Alert | -11 -10 -10 -10 -9 -8 -7 -7 -7 -7 -6 -6 -6 -6 -6 -6 ------- Run | Yrd Mat Min Exi Min Mat Fac Low Low Dat Pro Fac Ext Cet Arc Hub Peak Influence 784 | . 40 15 . . 243 248 . . . . 366 665 784 402 402 Initial 372 | . . 15 . . . 54 . . . . 163 147 372 277 53 Average 200 | . 12 15 . . 80 121 . . . . 218 228 562 306 202 Maximum Alert Level 3 | . . . . . 1 1 . . . . 1 2 3 2 2 Low Security (%) 61 | 100 100 100 . 100 91 86 . . . . 50 63 . . 61 Level 1 25 | . . . . . 8 13 . . . . 49 23 5 69 35 Level 2 12 | . . . . . . . . . . . . 12 92 29 2 Level 3 . | . . . . . . . . . . . . . 2 . . Level 4 . | . . . . . . . . . . . . . . . . Level 5 . | . . . . . . . . . . . . . . . . High Security . | . . . . . . . . . . . . . . . . Max Security . | . . . . . . . . . . . . . . . . Squads Dispatched 30 | . 1 . . . 4 10 . . . 1 6 1 3 . 4 Investigation 6 | . . . . . . 1 . . . . 2 . 3 . . Extermination 4 | . . . . . . 3 . . . . 1 . . . . Reinforcement 11 | . 1 . . . . 2 . . . . 3 1 . . 4 Assault 1 | . . . . . . . . . . 1 . . . . . Garrison 8 | . . . . . 4 4 . . . . . . . . . Intercept . | . . . . . . . . . . . . . . . . Searches Triggered . | . . . . . . . . . . . . . . . . Construction Impeded 3 | . . . . . . 1 . . . . 1 . . . 1 Haulers Reinforced 1 | . . . . . . . . . . . 1 . . . . Active Scanning Responses . | . . . . . . . . . . . . . . . . Cargo Convoy Interrupts . | . . . . . . . . . . . . . . . . Stealth | -11 -10 -10 -10 -9 -8 -7 -7 -7 -7 -6 -6 -6 -6 -6 -6 --------- Run | Yrd Mat Min Exi Min Mat Fac Low Low Dat Pro Fac Ext Cet Arc Hub Distress Signals 21 | . . 1 . . 2 1 . . . 13 . 2 1 . 1 Communications Jammed . | . . . . . . . . . . . . . . . . Distress Signals . | . . . . . . . . . . . . . . . . Times Spotted 241 | . 2 2 . 1 27 21 28 14 . 42 25 28 24 11 16 Peak Tracking Total 9 | . 2 1 . 1 8 4 9 5 . 9 8 4 7 2 6 Tactical Retreats 21 | . . . . . 2 3 4 . . 4 5 2 1 . . Traps | -11 -10 -10 -10 -9 -8 -7 -7 -7 -7 -6 -6 -6 -6 -6 -6 ------- Run | Yrd Mat Min Exi Min Mat Fac Low Low Dat Pro Fac Ext Cet Arc Hub Traps Triggered 11 | . 1 . . . . 4 1 . . . 2 3 . . . Indirectly 2 | . . . . . . . . . . . 2 . . . . Trap Hack Attempts . | . . . . . . . . . . . . . . . . Triggered . | . . . . . . . . . . . . . . . . Disarmed . | . . . . . . . . . . . . . . . . Reprogrammed . | . . . . . . . . . . . . . . . . Reused 1 | . . . . . 1 . . . . . . . . . . Traps Extracted . | . . . . . . . . . . . . . . . . Installed 2 | . . . . . 2 . . . . . . . . . . Triggered 1 | . . . . . 1 . . . . . . . . . . Most Traps Carried 2 | . . . . 2 2 . . . . . . . . . . Objects Rigged 8 | . . . . 1 . 4 3 . . . . . . . . Exploded 5 | . . . . 1 . 2 2 . . . . . . . . Machines | -11 -10 -10 -10 -9 -8 -7 -7 -7 -7 -6 -6 -6 -6 -6 -6 ---------- Run | Yrd Mat Min Exi Min Mat Fac Low Low Dat Pro Fac Ext Cet Arc Hub Machines Disabled 27 | . . . . . . 2 1 . . 6 2 2 3 8 3 Max in Single Turn 1 | . . . . . . 1 1 . . 1 1 . 1 1 1 Machines Repaired . | . . . . . . . . . . . . . . . . Machines Dismantled . | . . . . . . . . . . . . . . . . Machines Sabotaged . | . . . . . . . . . . . . . . . . Overloaded Fab Kills . | . . . . . . . . . . . . . . . . Hacking | -11 -10 -10 -10 -9 -8 -7 -7 -7 -7 -6 -6 -6 -6 -6 -6 --------- Run | Yrd Mat Min Exi Min Mat Fac Low Low Dat Pro Fac Ext Cet Arc Hub Machines Accessed 27 | . . . 1 . 2 3 2 . 4 . 5 6 3 1 . Terminals 15 | . . . . . 2 2 . . . . 3 5 3 . . Fabricators 2 | . . . . . . . . . . . 2 . . . . Repair Stations 2 | . . . . . . 1 . . . . . 1 . . . Recycling Units . | . . . . . . . . . . . . . . . . Scanalyzers . | . . . . . . . . . . . . . . . . Garrison Access . | . . . . . . . . . . . . . . . . Total Hacks 105 | . . . 1 . 5 4 7 . 29 . 15 10 9 25 . Successful 78 | . . . 1 . 3 2 7 . 29 . 5 4 2 25 . Failed 27 | . . . . . 2 2 . . . . 10 6 7 . . Catastrophic 7 | . . . . . . 2 . . . . 1 2 2 . . Database Lockouts . | . . . . . . . . . . . . . . . . Manual 15 | . . . 1 . 5 1 . . . . 2 3 2 1 . Terminals 29 | . . . . . 5 2 . . . . 6 7 9 . . Fabricators 9 | . . . . . . . . . . . 9 . . . . Repair Stations 5 | . . . . . . 2 . . . . . 3 . . . Recycling Units . | . . . . . . . . . . . . . . . . Scanalyzers . | . . . . . . . . . . . . . . . . Garrison Access . | . . . . . . . . . . . . . . . . Terminal Hacks 69 | . . . 1 . 1 . 7 . 29 . 2 2 2 25 . Record 44 | . . . 1 . . . 6 . 11 . . . 1 25 . Part Schematic 8 | . . . . . . . . . 8 . . . . . . Robot Schematic 7 | . . . . . . . . . 7 . . . . . . Robot Analysis 2 | . . . . . . . . . . . 2 . . . . Prototype ID Bank 3 | . . . . . . . . . 3 . . . . . . Open Door 3 | . . . . . . . 1 . . . . 1 1 . . Terminal Index 1 | . . . . . 1 . . . . . . . . . . Locate Traps 1 | . . . . . . . . . . . . 1 . . . Fabricator Hacks 3 | . . . . . . . . . . . 3 . . . . Load Schematic 1 | . . . . . . . . . . . 1 . . . . Build 2 | . . . . . . . . . . . 2 . . . . Repair Station Hacks 4 | . . . . . . 2 . . . . . 2 . . . Scan Component 2 | . . . . . . 1 . . . . . 1 . . . Repair 2 | . . . . . . 1 . . . . . 1 . . . Recycling Unit Hacks . | . . . . . . . . . . . . . . . . Scanalyzer . | . . . . . . . . . . . . . . . . Garrison Access Hacks . | . . . . . . . . . . . . . . . . Unauthorized Hacks 2 | . . . . . 2 . . . . . . . . . . Terminals 2 | . . . . . 2 . . . . . . . . . . Assimilate 1 | . . . . . 1 . . . . . . . . . . Operators 1 | . . . . . 1 . . . . . . . . . . Fabricators . | . . . . . . . . . . . . . . . . Repair Stations . | . . . . . . . . . . . . . . . . Recycling Units . | . . . . . . . . . . . . . . . . Scanalyzers . | . . . . . . . . . . . . . . . . Garrison Access . | . . . . . . . . . . . . . . . . Data Cores Recovered . | . . . . . . . . . . . . . . . . Used . | . . . . . . . . . . . . . . . . Hacking Detections 17 | . . . . . 2 2 . . . . 5 5 3 . . Full Trace Events 6 | . . . . . . 1 . . . . 2 . 3 . . Feedback Events 2 | . . . . . . 1 . . . . . . 1 . . Corruption 2 | . . . . . . 1 . . . . . . 1 . . Feedback Blocked . | . . . . . . . . . . . . . . . . Robot Schematics Acquired 7 | . . . . . . . . . 7 . . . . . . Robots Built 2 | . . . . . . . . . . . 2 . . . . Authchips . | . . . . . . . . . . . . . . . . Time 67 | . . . . . . . . . . . 67 . . . . Total Robot Build Rating 8 | . . . . . . . . . . . 8 . . . . Part Schematics Acquired 8 | . . . . . . . . . 8 . . . . . . Parts Built . | . . . . . . . . . . . . . . . . Authchips . | . . . . . . . . . . . . . . . . Time 128 | . . . . . . . . . . . 128 . . . . Total Part Build Rating . | . . . . . . . . . . . . . . . . Parts Repaired 2 | . . . . . . 1 . . . . . 1 . . . Time 35 | . . . . . . 22 . . . . . 13 . . . Parts Recycled . | . . . . . . . . . . . . . . . . Recycled Matter . | . . . . . . . . . . . . . . . . Retrieved Matter . | . . . . . . . . . . . . . . . . Retrieved Components . | . . . . . . . . . . . . . . . . Parts Scanalyzed . | . . . . . . . . . . . . . . . . Part Schematics Acquired . | . . . . . . . . . . . . . . . . Parts Damaged . | . . . . . . . . . . . . . . . . Bothacking | -11 -10 -10 -10 -9 -8 -7 -7 -7 -7 -6 -6 -6 -6 -6 -6 ------------ Run | Yrd Mat Min Exi Min Mat Fac Low Low Dat Pro Fac Ext Cet Arc Hub Used RIF Installer . | . . . . . . . . . . . . . . . . Robots Hacked . | . . . . . . . . . . . . . . . . Non-combat . | . . . . . . . . . . . . . . . . Combat . | . . . . . . . . . . . . . . . . Robot Hacks Applied . | . . . . . . . . . . . . . . . . Relay Couplers Released . | . . . . . . . . . . . . . . . . Fabnet Peak Effective % . | . . . . . . . . . . . . . . . . Robots Rewired 24 | . . . . . . 1 2 . . 4 . 17 . . . Allies Hacked . | . . . . . . . . . . . . . . . . Hacks Repelled . | . . . . . . . . . . . . . . . . Allies | -11 -10 -10 -10 -9 -8 -7 -7 -7 -7 -6 -6 -6 -6 -6 -6 -------- Run | Yrd Mat Min Exi Min Mat Fac Low Low Dat Pro Fac Ext Cet Arc Hub Total Allies 36 | . . . . . . 1 2 . . 5 2 26 . . . Largest Group 13 | . . . . . . 1 2 1 . 2 2 13 13 1 . Highest-Rated Group 515 | . . . . . . 32 48 16 . 96 80 515 392 39 . Highest-Rated Ally 159 | . . . . . . 32 32 16 . 96 40 159 39 39 . Total Orders 5 | . . . . . . . . . . . 1 4 . . . EXPLORE 4 | . . . . . . . . . . . 1 3 . . . RETURN 1 | . . . . . . . . . . . . 1 . . . Ally Attacks 251 | . . . . . . 3 12 . . 37 10 127 58 4 . Total Damage 7078 | . . . . . . 136 185 . . 2392 319 2867 1126 53 . Kills 56 | . . . . . . 1 1 . . 14 2 23 15 . . Allies Corrupted 1 | . . . . . . 1 . . . . . . . . . Allies Melted . | . . . . . . . . . . . . . . . . Intel | -11 -10 -10 -10 -9 -8 -7 -7 -7 -7 -6 -6 -6 -6 -6 -6 ------- Run | Yrd Mat Min Exi Min Mat Fac Low Low Dat Pro Fac Ext Cet Arc Hub Robot Analysis Total 2 | . . . . . . . . . . . 2 . . . . Derelict Logs Recovered 5 | . . 1 . . . . 2 1 . 1 . . . . . Drone Launches 4 | . . . . . . . . . . . 1 3 . . . Drone Recoveries 3 | . . . . . . . . . . . 1 2 . . . Exploration | -11 -10 -10 -10 -9 -8 -7 -7 -7 -7 -6 -6 -6 -6 -6 -6 ------------- Run | Yrd Mat Min Exi Min Mat Fac Low Low Dat Pro Fac Ext Cet Arc Hub Turns Passed 13485 | 53 191 233 497 170 854 1764 1739 1175 178 2285 1135 1361 599 808 443 Spaces Moved 8661 | 52 168 129 582 151 536 1102 1262 691 102 1330 807 728 420 389 212 Core 47 | 19 . . . . . . . . . 25 . . . . 3 Treads . | . . . . . . . . . . . . . . . . Legs 4227 | . . . 131 151 536 1102 52 298 . 22 189 728 420 389 209 Wheels 2040 | 33 168 129 451 . . . 1210 49 . . . . . . . Hover 1518 | . . . . . . . . . . 900 618 . . . . Flight 829 | . . . . . . . . 344 102 383 . . . . . Fastest Speed 48 | 50 80 80 80 90 70 105 115 100 109 48 108 110 112 112 50 Average Speed 117 | 69 80 80 82 90 97 125 117 152 167 136 112 115 112 112 111 Slowest Speed 600 | 80 80 80 90 90 170 180 180 387 189 600 365 120 112 190 112 Overloaded Moves 54 | . . . . . 54 . . . . . . . . . . Propulsion Burnouts . | . . . . . . . . . . . . . . . . Robots Hopped . | . . . . . . . . . . . . . . . . Cave-ins Triggered 1 | . . . . . . . . . . . . 1 . . . Exploration Rate (%) 54 | 3 26 33 80 40 35 25 96 67 75 87 18 86 87 100 13 Regions Visited 15 Branch Regions 11 Pre-discovered Areas 2 | . . . . . . . . 1 1 . . . . . . Known Exits Taken 2 | . . . . . . . . . . 1 1 . . . . Unknown Exits Taken 13 | 1 1 1 1 1 1 1 1 1 1 . . 1 1 1 . Scrap Searched 9 | . . . . 1 . . 3 2 . 3 . . . . . Spaces Dug 17 | . . . . . . . . 1 . . . 16 . . . Terrain Destroyed 137 | . . . . . 2 9 25 18 . 6 10 31 3 19 14 Melee . | . . . . . . . . . . . . . . . . Projectile 123 | . . . . . 2 3 25 18 . 6 5 31 3 18 12 AOE 11 | . . . . . . 6 . . . . 5 . . . . Terrain Rammed . | . . . . . . . . . . . . . . . . Walls Destroyed . | . . . . . . . . . . . . . . . . Machines Disabled . | . . . . . . . . . . . . . . . . Actions | -11 -10 -10 -10 -9 -8 -7 -7 -7 -7 -6 -6 -6 -6 -6 -6 --------- Run | Yrd Mat Min Exi Min Mat Fac Low Low Dat Pro Fac Ext Cet Arc Hub Total 11016 | 65 207 254 601 182 754 1383 1415 754 109 1716 983 1112 488 647 346 Wait 1110 | . 6 117 . 24 111 112 50 3 7 242 84 105 1 179 69 Move 8646 | 51 167 128 581 150 535 1101 1261 690 101 1329 806 727 419 388 212 Hop . | . . . . . . . . . . . . . . . . Pick Up 108 | 4 7 2 7 2 9 15 9 5 . 8 18 7 7 7 1 Fast Attach 97 | 8 5 . 5 . 13 26 2 5 . 9 14 4 . 4 2 Attach 69 | . . . 1 . 6 7 6 7 . 13 9 5 5 6 4 Detach 30 | 2 . . . . 2 4 . 4 . 6 5 1 1 3 2 Swap 34 | . 3 1 . 2 1 3 . 2 1 3 . 6 5 2 5 Drop 123 | . 5 2 7 2 11 30 3 4 . 6 15 8 11 7 12 Fire 485 | . 11 2 . 1 63 57 45 27 . 58 32 63 39 51 36 Melee . | . . . . . . . . . . . . . . . . Ram 3 | . 3 . . . . . . . . . . . . . . Kick 5 | . . . . . 1 . . . . . . 1 . . 3 Crush . | . . . . . . . . . . . . . . . . Escape Stasis 7 | . . . . . . . . . . . . 7 . . . Rewire 289 | . . 2 . . . 24 36 7 . 42 . 178 . . . Trap 10 | . . . . 1 2 4 3 . . . . . . . . Miscellaneous . | . . . . . . . . . . . . . . . . Route ------- -11/Scrapyard -10/Materials -10/Mines -10/Exiles -9/Mines (discovered 2 exits: *Mat x2) -8/Materials (discovered 2 exits: *Fac / [*Sto]) -7/Factory -7/Lower Caves -7/Lower Caves (discovered 2 exits: *Fac / *Dat) -7/Data Miner -6/Proximity Caves -6/Factory (discovered 4 exits: *Fac x2 / *Ext x2) -6/Extension (discovered 3 exits: *Fac x2 / *Cet) -6/Cetus -6/Archives (discovered 3 exits: *Fac / [*Hub x2]) -6/Hub_04(d) History --------- Turn | Location | Event 2 | -11/Scrapyard | Met Revision 17 10 | -11/Scrapyard | Discovered new exit (range 14) 54 | -11/Scrapyard | Entered Materials 108 | -10/Materials | Discovered new exit (range 16) 217 | -10/Materials | Met 8R-AWN 245 | -10/Materials | Entered Mines 246 | -10/Mines | Followed 8R-AWN into the Mines 306 | -10/Mines | Excavation squad dispatched 306 | -10/Mines | A large section of the Mines collapsed 311 | -10/Mines | Build established: Mutant 433 | -10/Mines | Learned 2 Materials zone layouts 475 | -10/Mines | Discovered new exit (range 5) 478 | -10/Mines | Entered Exiles 500 | -10/Exiles | Welcomed by 8R-AWN 514 | -10/Exiles | Met EX-HEX 563 | -10/Exiles | Met EX-DEC 589 | -10/Exiles | Visited The Gauntlet 670 | -10/Exiles | Discovered new exit (range 10) 761 | -10/Exiles | Met EX-BIN 771 | -10/Exiles | Aligned with FarCom system 771 | -10/Exiles | Given EX-Vault access code 829 | -10/Exiles | Opened EX-Vault 840 | -10/Exiles | Found Prototype Leg 840 | -10/Exiles | Identified Potential Leg 843 | -10/Exiles | Found Potential Leg 847 | -10/Exiles | Found Prototype Storage 847 | -10/Exiles | Identified Superbattery 881 | -10/Exiles | Found Prototype Device 881 | -10/Exiles | Identified PSU Rigger 911 | -10/Exiles | Warned to stay clear of 0b10 Research branches 975 | -10/Exiles | Stole three prototypes: PSU Rigger, Potential Leg, Superbattery 975 | -10/Exiles | Entered Mines 986 | -9/Mines | Met a Derelict bent on vengeance 1007 | -9/Mines | Assembled infested the area 1012 | -9/Mines | Assisted by a Guerilla fighting off Assembled 1033 | -9/Mines | Found a hidden stash of uninstalled traps 1082 | -9/Mines | Discovered new exit (range 5) 1106 | -9/Mines | Discovered new exit (range 12) 1145 | -9/Mines | Entered Materials 1145 | -8/Materials | Evolved 4 slots: Propulsion x2, Utility x2 1373 | -8/Materials | Lost 7 parts (2p2n1u2w) 1467 | -8/Materials | Garrison activated, responded to threat 1570 | -8/Materials | Garrison activated, responded to threat 1784 | -8/Materials | Discovered new exit (range 13) 1959 | -8/Materials | Discovered new exit (range 16) 1999 | -8/Materials | Entered Factory 1999 | -7/Factory | Evolved 2 slots: Utility x1, Weapon x1 2001 | -7/Factory | FarCom data flow suspended 2017 | -7/Factory | Garrison activated, responded to threat 2104 | -7/Factory | Lost 3 parts (1n1u1w) 2193 | -7/Factory | Garrison activated, responded to threat 2483 | -7/Factory | System corruption reached 10% 2676 | -7/Factory | Discovered new exit (range 9) 2897 | -7/Factory | Repaired Imp. Cooling System 2975 | -7/Factory | Build established: Gunner 3107 | -7/Factory | Found Prototype Device 3107 | -7/Factory | Identified Active Sensor Suite 3220 | -7/Factory | Found Powered Armor 3510 | -7/Factory | Build established: Tank 3763 | -7/Factory | Entered Lower Caves 4358 | -7/Lower Caves | Discovered new exit (range 6) 4558 | -7/Lower Caves | Learned Factory security intel 4608 | -7/Lower Caves | Attracted the attention of an 0b10 outpost 4636 | -7/Lower Caves | Lost 3 parts (1p1u1w) 4659 | -7/Lower Caves | Destroyed 8 combat bots 5092 | -7/Lower Caves | Learned Factory emergency access door positions 5092 | -7/Lower Caves | Learned Armory emergency access door positions 5092 | -7/Lower Caves | Learned Extension terminal intel 5092 | -7/Lower Caves | Learned Extension garrison access intel 5126 | -7/Lower Caves | Learned location of 1 exit from Factory 5502 | -7/Lower Caves | Entered another Lower Caves area 5502 | -7/Lower Caves | Accompanied by 1 ally 5503 | -7/Lower Caves | Identified exit to Factory 5520 | -7/Lower Caves | Attracted the attention of an 0b10 checkpoint 5914 | -7/Lower Caves | Spotted D7-A41(f) 5916 | -7/Lower Caves | Encountered a Master Thief 5916 | -7/Lower Caves | Spotted 4B-2M5(f) 5917 | -7/Lower Caves | Encountered a Master Thief 5917 | -7/Lower Caves | Spotted Q4-VSP(f) 5918 | -7/Lower Caves | Encountered a Master Thief 5918 | -7/Lower Caves | Spotted AU-3R1(f) 5918 | -7/Lower Caves | PSU Rigger stolen by Master Thief 5919 | -7/Lower Caves | Encountered a Master Thief 5919 | -7/Lower Caves | Potential Leg stolen by Master Thief 5922 | -7/Lower Caves | Potential Leg stolen by Master Thief 5925 | -7/Lower Caves | Spotted 8P-PJE(f) 5926 | -7/Lower Caves | Encountered a Master Thief 5928 | -7/Lower Caves | Destroyed D7-A41(f) 5928 | -7/Lower Caves | Superbattery stolen by Master Thief 6025 | -7/Lower Caves | Discovered new exit (range 9) 6330 | -7/Lower Caves | Build established: Scavenger-Mutant 6479 | -7/Lower Caves | Core integrity fell below 50% 6677 | -7/Lower Caves | Entered Data Miner 6677 | -7/Data Miner | Discovered new exit (range 6) 6713 | -7/Data Miner | Met Data Miner 6808 | -7/Data Miner | Learned location of Section 7 (-2) 6808 | -7/Data Miner | Acquired the access code to Warlord's prototype stash 6829 | -7/Data Miner | Received God Mode back door access code from Data Miner 6855 | -7/Data Miner | Entered Proximity Caves 6965 | -6/Proximity Caves | Attracted the attention of an 0b10 checkpoint 7210 | -6/Proximity Caves | Received a Behemoth hack from an annoying Tinkerer 7319 | -6/Proximity Caves | Build established: Scavenger-Skirmisher 7354 | -6/Proximity Caves | Learned Factory terminal intel 7641 | -6/Proximity Caves | Escorted by Enhanced Grunt 7672 | -6/Proximity Caves | Lost 3 parts (2u1w) 7743 | -6/Proximity Caves | Lost 3 allies 7772 | -6/Proximity Caves | Lost 8 parts (1p3n2u2w) 7946 | -6/Proximity Caves | Build established: Mutant 8143 | -6/Proximity Caves | Core integrity fell below 20% 8707 | -6/Proximity Caves | Build established: Scavenger-Tank 8926 | -6/Proximity Caves | Attracted the attention of an 0b10 outpost 9140 | -6/Proximity Caves | Entered Factory 9140 | -6/Factory | Evolved 2 slots: Utility x2 9141 | -6/Factory | Identified exit to Factory 9142 | -6/Factory | Identified exit to Extension 9145 | -6/Factory | Loaded intel: 27 terminal locations 9665 | -6/Factory | Discovered exit to Extension (range 6) 9935 | -6/Factory | Fabricated X-62 Marksman (x2) 10014 | -6/Factory | Lost 6 parts (1p3n2u) 10275 | -6/Factory | Entered Extension 10276 | -6/Extension | Loaded intel: 14 terminal locations 10471 | -6/Extension | Build established: Scavenger-Gunner 10525 | -6/Extension | Rescued a captive Derelict 10602 | -6/Extension | Repaired Med. Storage Unit 10701 | -6/Extension | Rescued a captive Derelict 10789 | -6/Extension | Rescued A7 10812 | -6/Extension | Rescued a captive Derelict 11007 | -6/Extension | Lost 4 allies 11026 | -6/Extension | Spotted B-75 Beast 11042 | -6/Extension | Spotted B-75 Beast 11055 | -6/Extension | Destroyed B-75 Beast 11081 | -6/Extension | Allies destroyed B-75 Beast 11089 | -6/Extension | Lost 4 allies 11098 | -6/Extension | Discovered exit to Factory (range 3) 11140 | -6/Extension | Rescued a captive Derelict 11141 | -6/Extension | Rescued a captive Derelict 11152 | -6/Extension | Rescued a captive Derelict 11153 | -6/Extension | Rescued a captive Derelict 11257 | -6/Extension | Crushed by falling debris 11314 | -6/Extension | Rescued a captive Derelict 11592 | -6/Extension | Discovered exit to Factory (range 10) 11593 | -6/Extension | Discovered new exit (range 6) 11636 | -6/Extension | Entered Cetus 11636 | -6/Cetus | Accompanied by 13 allies 11652 | -6/Cetus | Spotted Cetus Guard 11652 | -6/Cetus | Spotted Cetus Guard 11652 | -6/Cetus | Spotted Cetus Guard 11652 | -6/Cetus | Spotted Cetus Guard 11671 | -6/Cetus | Allies destroyed Cetus Guard 11675 | -6/Cetus | Allies destroyed Cetus Guard 11711 | -6/Cetus | Lost 8 allies 11815 | -6/Cetus | Lost 4 allies 11943 | -6/Cetus | Discovered new exit (range 22) 11963 | -6/Cetus | Build established: Scavenger-Tank 12116 | -6/Cetus | Core integrity fell below 50% 12210 | -6/Cetus | Spotted Cetus Guard 12210 | -6/Cetus | Spotted Cetus Guard 12210 | -6/Cetus | Spotted Cetus Guard 12210 | -6/Cetus | Spotted Cetus Guard 12235 | -6/Cetus | Entered Archives 12235 | -6/Archives | Accompanied by 1 ally 12424 | -6/Archives | Discovered new exit (range 21) 12655 | -6/Archives | Discovered exit to Factory (range 16) 12667 | -6/Archives | Unable to access archive contents 12678 | -6/Archives | Unable to access archive contents 12678 | -6/Archives | Unable to access archive contents 12688 | -6/Archives | Discovered new exit (range 22) 12696 | -6/Archives | Unable to access archive contents 12708 | -6/Archives | Unable to access archive contents 13043 | -6/Archives | Entered Hub_04(d) 13201 | -6/Hub_04(d) | Build established: Scavenger-Gunner 13481 | -6/Hub_04(d) | Core integrity fell below 20% 13486 | -6/Hub_04(d) | Destroyed by H-66 Slayer with Heavy Assault Rifle Last Messages --------------- 13480_ Penetrated by Slug. 13482_ Dropped Quantum Reactor. 13483_ Dropped Imp. Light Armor Plating. 13483_ Carbon-fiber Leg destroyed. 13483_ Penetrated by Slug. 13483_ Dropped Imp. Medium Armor Plating. 13483_ Penetrated by Slug. 13483_ Med. Matter Pod destroyed. 13483_ K-01 Serf collects debris. 13484_ Centrium Medium Armor Plating destroyed. 13484_ Knocked back. 13484_ K-01 Serf collects debris. 13485_ Dropped Med. Storage Unit. 13485_ Slug penetrates Wall. 13485_ Acquired 20 matter. 13486_ W-25 Informer sends out distress signal. 13486_ U-05 Engineer builds a Wall. 13486_ Slug penetrates Door. 13486_ K-01 Serf collects debris. 13486_ Penetrated by Slug. Map ----- +----------------------------------------------------+ | ?????????????????????????????????????????????????? | | ?????????????????????????????????????????????????? | | ?????????????????????????????????????????????????? | | ?????????????????????????????????????????????????? | | ?????????????????????????????????????????????????? | | ???????????????????????????? ??????????????????? | | ???????????????????????????# ??????????????????? | | ???????????????????????????# #?????????????????? | | ???????????????????????????# #?????????????????? | | ???????????????????????????# #?????????????????? | | ???????????????????????????# #?????????????????? | | ???????????????????????????# #?????????????????? | | ???????????????????????????# #?????????????????? | | ???????##########?########## #?????????????????? | | ???????# #?# # #?????????????????? | | ???????# """ #?# # ##????????????????? | | ???????# #?# ! # ?????????????????? | | ???????# """ #?# [[ # ?????????????????? | | ???????# #?# [! ###???????????????? | | ???????# """ =### # T"#???????????????? | | ???????# + # # ""????????????????? | | ???????? """ #?# ?# #?????????????????? | | ????????? ]]! ???? !* ??# #?????????????????? | | =###########/;#;;#####[#####h ########??????????? | | [%%[[ R*==%k=%% %%=%!*h% h #??????????? | | ==[[! % =%]*!=!* !H=!!=%!@ #??????????? | | %![[ %=!]]!H=%=k%!*!!ok #??????????? | | ##################;;#######;####+######??????????? | | ????######?????# =!!![==#??# #???????????? | | ???????????????# =![!""%#??# #???????????? | | ???????????????# "[%!"!!#??# #???????????? | | ???????????????# "**[T==#??# #???????????? | | ???????????????# !%=" =#??# ! #???????????? | | ???????????????# =[[ #### #???????????? | | ???????????????#] [ = + + #???????????? | | ???????????????#] !#### #???????????? | | ???????????????#![ [ #??###########???????????? | | ???????????????## #######????????????????????????? | | ????????????????###???###????????????????????????? | | ?????????????????????????????????????????????????? | | ?????????????????????????????????????????????????? | | ?????????????????????????????????????????????????? | | ?????????????????????????????????????????????????? | | ?????????????????????????????????????????????????? | | ?????????????????????????????????????????????????? | | ?????????????????????????????????????????????????? | | ?????????????????????????????????????????????????? | | ?????????????????????????????????????????????????? | | ?????????????????????????????????????????????????? | | | +----------------------------------------------------+ Best States ------------- Heat Dissipation 75 Energy Generation 25 Energy Capacity 1790 Matter Stores 500 Matter Capacity 500 Sight Range 22 Robot Scan Range 20 Terrain Scan Density 10 Jamming Range 12 Armor Coverage 600 Phase Shifting 5 Evasion (%) 63 Target Analysis 5 Offensive Hacking 12 Item Schematics ----------------- Combat Drone Bay | -7/Data Miner | Free Lgt. Regenerative Plating | -7/Data Miner | Free Biomechanical Wings | -7/Data Miner | Free Thermal Defense Suite | -7/Data Miner | Free Antimatter Cannon | -7/Data Miner | Free Linear Gravjet | -7/Data Miner | Free Remote Force Field | -7/Data Miner | Free Adv. Plasma Cannon | -7/Data Miner | Free Robot Schematics ------------------ G-50 Soldier | -7/Data Miner | Free S-27 Virus | -7/Data Miner | Free X-57 Shotgunner | -7/Data Miner | Free Y-54 Guardian | -7/Data Miner | Free X-62 Marksman | -7/Data Miner | Free Y-64 Sentinel | -7/Data Miner | Free I-36 Angel | -7/Data Miner | Free Fabricated ------------ X-62 Marksman | x2 | -6/Factory Alien Tech Used ----------------- None Achievements -------------- Collateral Damage Explorer Leap Before You Look Challenges ------------ None Game ------ Seed AccelerationThrusterMediator Manual? 0 Play Time 02:10:03 Cumulative 101.0 hours Start 2024.03.16 @ 02:00:37 End 2024.03.16 @ 18:54:34 Sessions 7 Manual Loads 0 Difficulty Rogue Special Mode None Game No. 100 Rogue 100 Adventurer 0 Explorer 0 Win Type - Total 0 Types 0/0/0/0/0/0/0/0/0 Lore% 35 Gallery% 50 Achievement% 35 Wizard Run 0 Options --------- Layout 2 ASCII 1 Keyboard 1 Movement Numpad Keybinds 0 Fullscreen 2 Font 32/TamsynBold Map View 50x44 Zoom Use 0% Tactical HUD 1 Map Filters NONE Filters NONE Steam 1 RUN: c7797c69-772a-48c4-959b-57f4db59c8d3